[Event "Titled Tuesday Blitz March 07 Early 2023"]
[White "Bok, Benjamin"]
[Black "Ezat, Mohamed"]
[WhiteFideId "1017063"]
[BlackFideId "10600906"]
[WhiteElo "2658"]
[BlackElo "2386"]
[Result "1-0"]
[Round "03"]
[TimeControl "180+2"]
[Date "2023.03.07"]
[WhiteClock "0:00:10"]
[BlackClock "0:00:08"]

1. d4 {[%clk 0:03:00]}  Nf6 {[%clk 0:02:48]} 2. c4 {[%clk 0:03:00]}  g6 {[%clk 0:02:48]} 3. g3 {[%clk 0:02:56]}  Bg7 {[%clk 0:02:49]} 4. Bg2 {[%clk 0:02:55]}  O-O {[%clk 0:02:49]} 5. Nc3 {[%clk 0:02:55]}  d6 {[%clk 0:02:50]} 6. Nf3 {[%clk 0:02:56]}  Nc6 {[%clk 0:02:51]} 7. O-O {[%clk 0:02:55]}  Bg4 {[%clk 0:02:51]} 8. Be3 {[%clk 0:02:54]}  Bxf3 {[%clk 0:02:48]} 9. Bxf3 {[%clk 0:02:52]}  Nd7 {[%clk 0:02:49]} 10. Rc1 {[%clk 0:02:29]}  e5 {[%clk 0:02:49]} 11. Bxc6 {[%clk 0:02:07]}  bxc6 {[%clk 0:02:48]} 12. Qd2 {[%clk 0:02:07]}  f5 {[%clk 0:02:41]} 13. dxe5 {[%clk 0:02:04]}  Nxe5 {[%clk 0:02:40]} 14. b3 {[%clk 0:02:03]}  Qe8 {[%clk 0:02:20]} 15. Bh6 {[%clk 0:01:54]}  Qe7 {[%clk 0:02:07]} 16. Bxg7 {[%clk 0:01:49]}  Qxg7 {[%clk 0:02:07]} 17. Kg2 {[%clk 0:01:32]}  f4 {[%clk 0:02:00]} 18. gxf4 {[%clk 0:01:30]}  Qh6 {[%clk 0:01:59]} 19. e3 {[%clk 0:01:30]}  Qh5 {[%clk 0:01:58]} 20. f3 {[%clk 0:01:29]}  Nf7 {[%clk 0:01:54]} 21. Ne4 {[%clk 0:01:28]}  Nh6 {[%clk 0:01:51]} 22. Ng3 {[%clk 0:01:27]}  Qh4 {[%clk 0:01:48]} 23. b4 {[%clk 0:01:22]}  Rae8 {[%clk 0:01:43]} 24. c5 {[%clk 0:01:09]}  Nf5 {[%clk 0:01:40]} 25. Nxf5 {[%clk 0:01:04]}  Rxf5 {[%clk 0:01:39]} 26. cxd6 {[%clk 0:01:04]}  Rh5 {[%clk 0:01:31]} 27. Kh1 {[%clk 0:01:03]}  cxd6 {[%clk 0:01:28]} 28. Qf2 {[%clk 0:00:49]}  Qh3 {[%clk 0:01:18]} 29. Rfe1 {[%clk 0:00:37]}  c5 {[%clk 0:00:37]} 30. bxc5 {[%clk 0:00:35]}  dxc5 {[%clk 0:00:37]} 31. e4 {[%clk 0:00:19]}  Rh4 {[%clk 0:00:37]} 32. Qg2 {[%clk 0:00:16]}  Qd7 {[%clk 0:00:30]} 33. f5 {[%clk 0:00:16]}  Kh8 {[%clk 0:00:17]} 34. fxg6 {[%clk 0:00:14]}  hxg6 {[%clk 0:00:11]} 35. Qxg6 {[%clk 0:00:10]}  Rg8 {[%clk 0:00:11]} 36. Qf6+ {[%clk 0:00:10]}  Kh7 {[%clk 0:00:08]} 37. Qxh4+ {[%clk 0:00:10]} 1-0


[Site "https://www.chess.com"]

[Event "Titled Tuesday Blitz March 07 Early 2023"]
[White "Gholami Orimi, Mahdi"]
[Black "UNSTOPPABLE_LEGEND"]
[WhiteFideId "12558486"]
[WhiteElo "2363"]
[BlackElo "2508"]
[Result "1-0"]
[Round "03"]
[TimeControl "180+2"]
[Date "2023.03.07"]
[WhiteClock "0:01:10"]
[BlackClock "0:00:01"]

1. d4 {[%clk 0:02:53]}  Nf6 {[%clk 0:02:59]} 2. c4 {[%clk 0:02:53]}  e6 {[%clk 0:02:59]} 3. Nc3 {[%clk 0:02:54]}  Bb4 {[%clk 0:02:59]} 4. f3 {[%clk 0:02:53]}  c5 {[%clk 0:02:58]} 5. d5 {[%clk 0:02:52]}  b5 {[%clk 0:02:57]} 6. e4 {[%clk 0:02:52]}  d6 {[%clk 0:02:57]} 7. Bd2 {[%clk 0:02:39]}  a6 {[%clk 0:02:54]} 8. a3 {[%clk 0:02:28]}  Ba5 {[%clk 0:02:39]} 9. dxe6 {[%clk 0:02:15]}  Bxe6 {[%clk 0:02:31]} 10. cxb5 {[%clk 0:02:14]}  O-O {[%clk 0:02:27]} 11. Nge2 {[%clk 0:02:14]}  axb5 {[%clk 0:02:13]} 12. Nxb5 {[%clk 0:02:15]}  Nc6 {[%clk 0:02:13]} 13. Nf4 {[%clk 0:02:13]}  d5 {[%clk 0:01:51]} 14. exd5 {[%clk 0:02:06]}  Bxd5 {[%clk 0:01:37]} 15. Be2 {[%clk 0:02:03]}  Bb3 {[%clk 0:00:27]} 16. Qc1 {[%clk 0:01:56]}  c4 {[%clk 0:00:16]} 17. Bxa5 {[%clk 0:01:50]}  Qxa5+ {[%clk 0:00:17]} 18. Nc3 {[%clk 0:01:51]}  Nd4 {[%clk 0:00:16]} 19. O-O {[%clk 0:01:50]}  Nc2 {[%clk 0:00:13]} 20. Rb1 {[%clk 0:01:50]}  Rfe8 {[%clk 0:00:13]} 21. Rf2 {[%clk 0:01:49]}  Rad8 {[%clk 0:00:12]} 22. Bxc4 {[%clk 0:01:48]}  Bxc4 {[%clk 0:00:07]} 23. Qxc2 {[%clk 0:01:48]}  g5 {[%clk 0:00:07]} 24. Ne4 {[%clk 0:01:31]}  Nxe4 {[%clk 0:00:04]} 25. fxe4 {[%clk 0:01:32]}  Ba2 {[%clk 0:00:02]} 26. Ra1 {[%clk 0:01:21]}  Rc8 {[%clk 0:00:02]} 27. Qd1 {[%clk 0:01:13]}  Bc4 {[%clk 0:00:01]} 28. Nh5 {[%clk 0:01:10]} 1-0


[Site "https://www.chess.com"]

[Event "Titled Tuesday Blitz March 07 Early 2023"]
[White "Baches Garcia, Guillermo"]
[Black "Galchenko, Matvey"]
[WhiteFideId "2209764"]
[BlackFideId "24175480"]
[WhiteElo "2501"]
[BlackElo "2404"]
[Result "1-0"]
[Round "03"]
[TimeControl "180+2"]
[Date "2023.03.07"]
[WhiteClock "0:01:18"]
[BlackClock "0:00:01"]

1. e4 {[%clk 0:03:00]}  e6 {[%clk 0:02:42]} 2. d4 {[%clk 0:03:00]}  d5 {[%clk 0:02:42]} 3. exd5 {[%clk 0:03:01]}  exd5 {[%clk 0:02:42]} 4. Nf3 {[%clk 0:03:02]}  Nf6 {[%clk 0:02:42]} 5. Bd3 {[%clk 0:03:01]}  c5 {[%clk 0:02:42]} 6. O-O {[%clk 0:03:01]}  Nc6 {[%clk 0:02:42]} 7. Re1+ {[%clk 0:02:59]}  Be7 {[%clk 0:02:41]} 8. dxc5 {[%clk 0:02:59]}  O-O {[%clk 0:02:40]} 9. Be3 {[%clk 0:02:56]}  Ng4 {[%clk 0:02:32]} 10. Qd2 {[%clk 0:02:51]}  Nxe3 {[%clk 0:02:31]} 11. Qxe3 {[%clk 0:02:51]}  Bf6 {[%clk 0:02:29]} 12. c3 {[%clk 0:02:37]}  Bg4 {[%clk 0:02:29]} 13. Nbd2 {[%clk 0:02:30]}  Qd7 {[%clk 0:02:22]} 14. h3 {[%clk 0:02:21]}  Bh5 {[%clk 0:02:20]} 15. Qf4 {[%clk 0:02:09]}  Bg6 {[%clk 0:02:06]} 16. Bxg6 {[%clk 0:02:05]}  hxg6 {[%clk 0:02:06]} 17. Rad1 {[%clk 0:01:55]}  Rad8 {[%clk 0:02:05]} 18. Ne4 {[%clk 0:01:49]}  Be7 {[%clk 0:02:01]} 19. Neg5 {[%clk 0:01:44]}  Bxg5 {[%clk 0:00:17]} 20. Nxg5 {[%clk 0:01:44]}  f6 {[%clk 0:00:17]} 21. Ne6 {[%clk 0:01:41]}  Rfe8 {[%clk 0:00:09]} 22. Nxd8 {[%clk 0:01:39]}  Rxd8 {[%clk 0:00:07]} 23. Qg4 {[%clk 0:01:34]}  Kf7 {[%clk 0:00:04]} 24. Qxd7+ {[%clk 0:01:29]}  Rxd7 {[%clk 0:00:05]} 25. f4 {[%clk 0:01:28]}  d4 {[%clk 0:00:03]} 26. cxd4 {[%clk 0:01:25]}  Nxd4 {[%clk 0:00:03]} 27. Kf2 {[%clk 0:01:23]}  Rd5 {[%clk 0:00:04]} 28. Rd3 {[%clk 0:01:19]}  Kf8 {[%clk 0:00:01]} 29. Red1 {[%clk 0:01:18]} 1-0


[Site "https://www.chess.com"]

[Event "Titled Tuesday Blitz March 07 Early 2023"]
[White "Womacka, Mathias"]
[Black "Movahed, Sina"]
[WhiteFideId "4611390"]
[BlackFideId "42520835"]
[WhiteElo "2377"]
[BlackElo "2225"]
[Result "0-1"]
[Round "03"]
[TimeControl "180+2"]
[Date "2023.03.07"]
[WhiteClock "0:00:14"]
[BlackClock "0:00:57"]

1. e4 {[%clk 0:03:00]}  c5 {[%clk 0:02:59]} 2. Nf3 {[%clk 0:03:00]}  d6 {[%clk 0:02:59]} 3. d4 {[%clk 0:03:00]}  cxd4 {[%clk 0:03:00]} 4. Nxd4 {[%clk 0:03:00]}  Nf6 {[%clk 0:03:01]} 5. Nc3 {[%clk 0:03:00]}  a6 {[%clk 0:03:01]} 6. Be2 {[%clk 0:03:00]}  e5 {[%clk 0:02:59]} 7. Nb3 {[%clk 0:02:59]}  Be7 {[%clk 0:03:00]} 8. O-O {[%clk 0:02:58]}  O-O {[%clk 0:02:58]} 9. Kh1 {[%clk 0:02:57]}  b5 {[%clk 0:02:57]} 10. a4 {[%clk 0:02:55]}  b4 {[%clk 0:02:54]} 11. Nd5 {[%clk 0:02:54]}  Nxd5 {[%clk 0:02:46]} 12. Qxd5 {[%clk 0:02:46]}  Ra7 {[%clk 0:02:45]} 13. Be3 {[%clk 0:02:46]}  Rd7 {[%clk 0:02:43]} 14. Bc4 {[%clk 0:02:30]}  Kh8 {[%clk 0:02:36]} 15. a5 {[%clk 0:02:20]}  Bb7 {[%clk 0:02:34]} 16. Qd3 {[%clk 0:02:19]}  f5 {[%clk 0:02:29]} 17. f3 {[%clk 0:02:07]}  d5 {[%clk 0:01:53]} 18. exd5 {[%clk 0:02:05]}  Bxd5 {[%clk 0:01:52]} 19. Bxd5 {[%clk 0:01:59]}  Rxd5 {[%clk 0:01:52]} 20. Qc4 {[%clk 0:01:54]}  Qd7 {[%clk 0:01:52]} 21. Qe2 {[%clk 0:01:17]}  Qe6 {[%clk 0:01:43]} 22. Rad1 {[%clk 0:01:13]}  Rb5 {[%clk 0:01:43]} 23. Bb6 {[%clk 0:01:03]}  Nc6 {[%clk 0:01:40]} 24. Qd3 {[%clk 0:00:56]}  h5 {[%clk 0:01:37]} 25. Qd7 {[%clk 0:00:53]}  Rf6 {[%clk 0:01:26]} 26. Qe8+ {[%clk 0:00:37]}  Kh7 {[%clk 0:01:26]} 27. Qxh5+ {[%clk 0:00:36]}  Rh6 {[%clk 0:01:25]} 28. Qe8 {[%clk 0:00:36]}  e4 {[%clk 0:01:24]} 29. Qd7 {[%clk 0:00:36]}  Re5 {[%clk 0:01:09]} 30. Qxe6 {[%clk 0:00:34]}  Rhxe6 {[%clk 0:01:10]} 31. fxe4 {[%clk 0:00:28]}  fxe4 {[%clk 0:01:10]} 32. Be3 {[%clk 0:00:24]}  Bf6 {[%clk 0:01:06]} 33. Nc5 {[%clk 0:00:23]}  Re7 {[%clk 0:01:03]} 34. Nxa6 {[%clk 0:00:23]}  Rxa5 {[%clk 0:01:02]} 35. Nc5 {[%clk 0:00:21]}  Bxb2 {[%clk 0:01:02]} 36. Rd6 {[%clk 0:00:17]}  Ne5 {[%clk 0:01:01]} 37. h3 {[%clk 0:00:16]}  Nc4 {[%clk 0:01:00]} 38. Bg1 {[%clk 0:00:14]}  Nxd6 {[%clk 0:00:59]} 39. Nb3 {[%clk 0:00:14]}  Rd5 {[%clk 0:00:57]} 0-1


[Site "https://www.chess.com"]

[Event "Titled Tuesday Blitz March 07 Early 2023"]
[White "Yosha_Iglesias"]
[Black "Fier, Alexandr"]
[BlackFideId "2107139"]
[WhiteElo "2482"]
[BlackElo "2610"]
[Result "0-1"]
[Round "03"]
[TimeControl "180+2"]
[Date "2023.03.07"]
[WhiteClock "0:00:01"]
[BlackClock "0:00:11"]

1. d4 {[%clk 0:03:00]}  Nf6 {[%clk 0:02:59]} 2. Nf3 {[%clk 0:03:00]}  e6 {[%clk 0:02:58]} 3. e3 {[%clk 0:03:00]}  b6 {[%clk 0:02:55]} 4. Bd3 {[%clk 0:03:00]}  Bb7 {[%clk 0:02:56]} 5. O-O {[%clk 0:03:00]}  h6 {[%clk 0:02:50]} 6. c4 {[%clk 0:02:51]}  g5 {[%clk 0:02:49]} 7. Nc3 {[%clk 0:02:52]}  g4 {[%clk 0:02:49]} 8. Nd2 {[%clk 0:02:48]}  h5 {[%clk 0:02:47]} 9. e4 {[%clk 0:02:43]}  c5 {[%clk 0:02:47]} 10. d5 {[%clk 0:02:42]}  e5 {[%clk 0:02:39]} 11. f4 {[%clk 0:02:29]}  d6 {[%clk 0:02:37]} 12. fxe5 {[%clk 0:02:26]}  dxe5 {[%clk 0:02:37]} 13. Bc2 {[%clk 0:01:42]}  Nbd7 {[%clk 0:02:32]} 14. Ba4 {[%clk 0:01:41]}  Bd6 {[%clk 0:02:18]} 15. Nb3 {[%clk 0:01:28]}  Rg8 {[%clk 0:02:08]} 16. Nb5 {[%clk 0:01:24]}  Qe7 {[%clk 0:02:04]} 17. Nxd6+ {[%clk 0:01:15]}  Qxd6 {[%clk 0:02:04]} 18. Rf5 {[%clk 0:01:10]}  O-O-O {[%clk 0:01:41]} 19. Qf1 {[%clk 0:01:02]}  Nxe4 {[%clk 0:01:38]} 20. Rxf7 {[%clk 0:00:56]}  Ndf6 {[%clk 0:01:32]} 21. Nd2 {[%clk 0:00:51]}  Rdf8 {[%clk 0:01:28]} 22. Rxf8+ {[%clk 0:00:48]}  Rxf8 {[%clk 0:01:29]} 23. Qe2 {[%clk 0:00:43]}  Ng5 {[%clk 0:01:07]} 24. Nf1 {[%clk 0:00:42]}  Nf7 {[%clk 0:00:38]} 25. Ng3 {[%clk 0:00:39]}  Qd8 {[%clk 0:00:22]} 26. Bc2 {[%clk 0:00:18]}  Nd6 {[%clk 0:00:20]} 27. Bh6 {[%clk 0:00:16]}  Re8 {[%clk 0:00:19]} 28. Rf1 {[%clk 0:00:15]}  Ng8 {[%clk 0:00:19]} 29. Bg7 {[%clk 0:00:11]}  Qe7 {[%clk 0:00:18]} 30. Bh8 {[%clk 0:00:04]}  Nf7 {[%clk 0:00:18]} 31. Bg7 {[%clk 0:00:04]}  Ng5 {[%clk 0:00:18]} 32. Nf5 {[%clk 0:00:03]}  Qd7 {[%clk 0:00:16]} 33. Bh6 {[%clk 0:00:02]}  Nf7 {[%clk 0:00:16]} 34. Be3 {[%clk 0:00:02]}  Kb8 {[%clk 0:00:16]} 35. Ng7 {[%clk 0:00:02]}  Rc8 {[%clk 0:00:14]} 36. Ne6 {[%clk 0:00:02]}  Nd6 {[%clk 0:00:14]} 37. Bf5 {[%clk 0:00:03]}  Nxf5 {[%clk 0:00:14]} 38. Rxf5 {[%clk 0:00:03]}  b5 {[%clk 0:00:13]} 39. Qf1 {[%clk 0:00:03]}  bxc4 {[%clk 0:00:12]} 40. Rf7 {[%clk 0:00:02]}  Qxd5 {[%clk 0:00:13]} 41. Ng7 {[%clk 0:00:02]}  c3 {[%clk 0:00:11]} 42. bxc3 {[%clk 0:00:01]}  Qe4 {[%clk 0:00:11]} 43. Bf2 {[%clk 0:00:01]}  h4 {[%clk 0:00:11]} 44. Bxh4 {[%clk 0:00:01]}  Nh6 {[%clk 0:00:11]} 45. Bg3 {[%clk 0:00:01]}  Nxf7 {[%clk 0:00:11]} 0-1


[Site "https://www.chess.com"]

[Event "Titled Tuesday Blitz March 07 Early 2023"]
[White "Ronka, Erik"]
[Black "Hambleton, Aman"]
[WhiteFideId "505080"]
[BlackFideId "2606577"]
[WhiteElo "2264"]
[BlackElo "2511"]
[Result "1-0"]
[Round "03"]
[TimeControl "180+2"]
[Date "2023.03.07"]
[WhiteClock "0:00:04"]
[BlackClock "0:00:01"]

1. e4 {[%clk 0:03:00]}  c5 {[%clk 0:02:59]} 2. Nf3 {[%clk 0:03:01]}  e6 {[%clk 0:02:59]} 3. d4 {[%clk 0:03:01]}  cxd4 {[%clk 0:03:00]} 4. Nxd4 {[%clk 0:03:01]}  Nc6 {[%clk 0:02:58]} 5. Nc3 {[%clk 0:03:02]}  Qc7 {[%clk 0:02:57]} 6. Be3 {[%clk 0:03:02]}  a6 {[%clk 0:02:57]} 7. Qd2 {[%clk 0:03:02]}  Nf6 {[%clk 0:02:56]} 8. O-O-O {[%clk 0:03:03]}  Be7 {[%clk 0:02:53]} 9. f3 {[%clk 0:03:03]}  h5 {[%clk 0:02:53]} 10. Nxc6 {[%clk 0:02:54]}  dxc6 {[%clk 0:01:53]} 11. Qf2 {[%clk 0:02:50]}  c5 {[%clk 0:01:43]} 12. h3 {[%clk 0:02:36]}  b5 {[%clk 0:01:32]} 13. Kb1 {[%clk 0:02:05]}  Bb7 {[%clk 0:01:30]} 14. Rg1 {[%clk 0:02:01]}  h4 {[%clk 0:01:15]} 15. g3 {[%clk 0:01:32]}  hxg3 {[%clk 0:01:16]} 16. Rxg3 {[%clk 0:01:33]}  g6 {[%clk 0:01:00]} 17. Bg5 {[%clk 0:01:16]}  Rc8 {[%clk 0:00:22]} 18. Re1 {[%clk 0:01:12]}  Nh5 {[%clk 0:00:19]} 19. Rg1 {[%clk 0:01:08]}  Qe5 {[%clk 0:00:16]} 20. f4 {[%clk 0:01:03]}  Qd4 {[%clk 0:00:16]} 21. Qf3 {[%clk 0:00:54]}  Bxg5 {[%clk 0:00:04]} 22. Rxg5 {[%clk 0:00:47]}  Qd6 {[%clk 0:00:02]} 23. Qe3 {[%clk 0:00:44]}  Qxf4 {[%clk 0:00:02]} 24. Qg1 {[%clk 0:00:39]}  Ke7 {[%clk 0:00:01]} 25. a3 {[%clk 0:00:37]}  c4 {[%clk 0:00:01]} 26. e5 {[%clk 0:00:32]}  Rhd8 {[%clk 0:00:01]} 27. Rg4 {[%clk 0:00:32]}  Qf5 {[%clk 0:00:01]} 28. Qb6 {[%clk 0:00:31]}  Rd7 {[%clk 0:00:01]} 29. a4 {[%clk 0:00:29]}  Nf4 {[%clk 0:00:01]} 30. axb5 {[%clk 0:00:27]}  axb5 {[%clk 0:00:02]} 31. Nxb5 {[%clk 0:00:25]}  Bd5 {[%clk 0:00:02]} 32. Nd6 {[%clk 0:00:23]}  Rxd6 {[%clk 0:00:02]} 33. exd6+ {[%clk 0:00:18]}  Kd7 {[%clk 0:00:02]} 34. Qe3 {[%clk 0:00:16]}  g5 {[%clk 0:00:02]} 35. Rd1 {[%clk 0:00:13]}  Kxd6 {[%clk 0:00:01]} 36. Rg1 {[%clk 0:00:11]}  Ke7 {[%clk 0:00:02]} 37. h4 {[%clk 0:00:10]}  Be4 {[%clk 0:00:02]} 38. Rd2 {[%clk 0:00:09]}  gxh4 {[%clk 0:00:02]} 39. Kc1 {[%clk 0:00:07]}  Bd5 {[%clk 0:00:01]} 40. Rf2 {[%clk 0:00:05]}  e5 {[%clk 0:00:01]} 41. Bh3 {[%clk 0:00:03]}  Qxh3 {[%clk 0:00:01]} 42. Qxe5+ {[%clk 0:00:04]}  Ne6 {[%clk 0:00:01]} 43. Qxd5 {[%clk 0:00:04]} 1-0


[Site "https://www.chess.com"]

[Event "Titled Tuesday Blitz March 07 Early 2023"]
[White "Lortkipanidze, Nodar"]
[Black "Goltseva, Ekaterina"]
[WhiteFideId "13604058"]
[BlackFideId "24173770"]
[WhiteElo "2336"]
[BlackElo "2200"]
[Result "1-0"]
[Round "03"]
[TimeControl "180+2"]
[Date "2023.03.07"]
[WhiteClock "0:01:38"]
[BlackClock "0:00:02"]

1. e4 {[%clk 0:02:58]}  e5 {[%clk 0:02:55]} 2. Nf3 {[%clk 0:02:58]}  Nf6 {[%clk 0:02:54]} 3. d4 {[%clk 0:02:59]}  exd4 {[%clk 0:02:52]} 4. e5 {[%clk 0:02:56]}  Ne4 {[%clk 0:02:50]} 5. Qxd4 {[%clk 0:02:55]}  d5 {[%clk 0:02:49]} 6. exd6 {[%clk 0:02:55]}  Nxd6 {[%clk 0:02:47]} 7. Bg5 {[%clk 0:02:53]}  f6 {[%clk 0:02:35]} 8. Bf4 {[%clk 0:02:52]}  Nc6 {[%clk 0:02:34]} 9. Qd2 {[%clk 0:02:43]}  Bg4 {[%clk 0:02:22]} 10. Nc3 {[%clk 0:02:42]}  Qe7+ {[%clk 0:02:13]} 11. Be3 {[%clk 0:02:33]}  O-O-O {[%clk 0:02:05]} 12. Nd5 {[%clk 0:02:25]}  Qf7 {[%clk 0:02:00]} 13. O-O-O {[%clk 0:02:24]}  Ne4 {[%clk 0:01:50]} 14. Qd3 {[%clk 0:02:21]}  Bf5 {[%clk 0:01:45]} 15. Qc4 {[%clk 0:02:20]}  Be6 {[%clk 0:01:27]} 16. Qxe4 {[%clk 0:01:59]}  Bxd5 {[%clk 0:01:27]} 17. Qa4 {[%clk 0:01:59]}  Bd6 {[%clk 0:01:16]} 18. Bb5 {[%clk 0:01:53]}  a6 {[%clk 0:01:08]} 19. Be2 {[%clk 0:01:53]}  Rhe8 {[%clk 0:01:00]} 20. Nd4 {[%clk 0:01:51]}  Nxd4 {[%clk 0:00:58]} 21. Qxd4 {[%clk 0:01:52]}  Bxg2 {[%clk 0:00:52]} 22. Rhg1 {[%clk 0:01:52]}  Qxa2 {[%clk 0:00:46]} 23. Bg4+ {[%clk 0:01:50]}  Rd7 {[%clk 0:00:29]} 24. Bxd7+ {[%clk 0:01:47]}  Kxd7 {[%clk 0:00:29]} 25. Rxg2 {[%clk 0:01:47]}  Re5 {[%clk 0:00:17]} 26. Rxg7+ {[%clk 0:01:45]}  Ke8 {[%clk 0:00:12]} 27. c3 {[%clk 0:01:42]}  Qa1+ {[%clk 0:00:07]} 28. Kc2 {[%clk 0:01:41]}  Qa2 {[%clk 0:00:06]} 29. Rdg1 {[%clk 0:01:38]}  Rb5 {[%clk 0:00:04]} 30. Rg8+ {[%clk 0:01:39]}  Kd7 {[%clk 0:00:04]} 31. R1g7+ {[%clk 0:01:39]}  Ke6 {[%clk 0:00:02]} 32. Re8+ {[%clk 0:01:38]} 1-0


[Site "https://www.chess.com"]

[Event "Titled Tuesday Blitz March 07 Early 2023"]
[White "Mirzoev, Azer"]
[Black "Eynullayev, Atilla"]
[WhiteFideId "13400304"]
[BlackFideId "13413570"]
[WhiteElo "2525"]
[BlackElo "2181"]
[Result "1-0"]
[Round "03"]
[TimeControl "180+2"]
[Date "2023.03.07"]
[WhiteClock "0:00:35"]
[BlackClock "0:00:04"]

1. d4 {[%clk 0:02:59]}  Nf6 {[%clk 0:02:59]} 2. c4 {[%clk 0:02:59]}  e6 {[%clk 0:03:00]} 3. Nc3 {[%clk 0:02:59]}  Bb4 {[%clk 0:02:59]} 4. Qc2 {[%clk 0:03:00]}  O-O {[%clk 0:02:58]} 5. a3 {[%clk 0:02:58]}  Bxc3+ {[%clk 0:02:58]} 6. Qxc3 {[%clk 0:02:57]}  b6 {[%clk 0:02:58]} 7. Bg5 {[%clk 0:02:56]}  Bb7 {[%clk 0:02:58]} 8. e3 {[%clk 0:02:55]}  d6 {[%clk 0:02:56]} 9. f3 {[%clk 0:02:51]}  Nbd7 {[%clk 0:02:53]} 10. Nh3 {[%clk 0:02:49]}  c5 {[%clk 0:02:53]} 11. Rd1 {[%clk 0:02:46]}  h6 {[%clk 0:02:45]} 12. Bf4 {[%clk 0:02:36]}  Ne8 {[%clk 0:02:17]} 13. Bg3 {[%clk 0:02:33]}  Rc8 {[%clk 0:02:02]} 14. Be2 {[%clk 0:02:25]}  Qf6 {[%clk 0:01:39]} 15. O-O {[%clk 0:02:20]}  d5 {[%clk 0:01:29]} 16. cxd5 {[%clk 0:02:19]}  cxd4 {[%clk 0:00:57]} 17. Qxd4 {[%clk 0:02:18]}  Qxd4 {[%clk 0:00:55]} 18. Rxd4 {[%clk 0:02:15]}  Bxd5 {[%clk 0:00:55]} 19. e4 {[%clk 0:02:12]}  Bc6 {[%clk 0:00:56]} 20. b4 {[%clk 0:02:05]}  Nef6 {[%clk 0:00:50]} 21. Ba6 {[%clk 0:01:58]}  e5 {[%clk 0:00:13]} 22. Rd6 {[%clk 0:01:53]}  Ne8 {[%clk 0:00:11]} 23. Rd2 {[%clk 0:01:38]}  Ra8 {[%clk 0:00:06]} 24. Rc1 {[%clk 0:01:37]}  Ba4 {[%clk 0:00:06]} 25. Nf2 {[%clk 0:01:22]}  Nef6 {[%clk 0:00:06]} 26. Nd3 {[%clk 0:01:12]}  Rfd8 {[%clk 0:00:06]} 27. Nxe5 {[%clk 0:00:59]}  Nxe5 {[%clk 0:00:06]} 28. Rxd8+ {[%clk 0:00:58]}  Rxd8 {[%clk 0:00:07]} 29. Bxe5 {[%clk 0:00:59]}  Nd7 {[%clk 0:00:04]} 30. Bc7 {[%clk 0:00:55]}  Re8 {[%clk 0:00:03]} 31. Bd6 {[%clk 0:00:54]}  Nb8 {[%clk 0:00:03]} 32. Rc8 {[%clk 0:00:45]}  Rxc8 {[%clk 0:00:02]} 33. Bxc8 {[%clk 0:00:45]}  Nc6 {[%clk 0:00:03]} 34. Bd7 {[%clk 0:00:35]}  Nd4 {[%clk 0:00:04]} 1-0


[Site "https://www.chess.com"]

[Event "Titled Tuesday Blitz March 07 Early 2023"]
[White "Petrosian, Karlen"]
[Black "Mortazavi, Ali"]
[WhiteFideId "4176146"]
[BlackFideId "401323"]
[WhiteElo "2345"]
[BlackElo "2339"]
[Result "0-1"]
[Round "03"]
[TimeControl "180+2"]
[Date "2023.03.07"]
[WhiteClock "0:00:12"]
[BlackClock "0:00:16"]

1. e4 {[%clk 0:03:00]}  c6 {[%clk 0:02:59]} 2. Nf3 {[%clk 0:02:59]}  d5 {[%clk 0:02:59]} 3. d3 {[%clk 0:03:00]}  Bg4 {[%clk 0:02:55]} 4. Be2 {[%clk 0:02:59]}  e6 {[%clk 0:02:52]} 5. Nfd2 {[%clk 0:02:58]}  Bxe2 {[%clk 0:02:51]} 6. Qxe2 {[%clk 0:02:59]}  Nf6 {[%clk 0:02:51]} 7. O-O {[%clk 0:03:00]}  Be7 {[%clk 0:02:51]} 8. a4 {[%clk 0:02:59]}  O-O {[%clk 0:02:50]} 9. a5 {[%clk 0:02:47]}  c5 {[%clk 0:02:49]} 10. f4 {[%clk 0:02:40]}  Nc6 {[%clk 0:02:41]} 11. a6 {[%clk 0:02:40]}  bxa6 {[%clk 0:02:37]} 12. Nf3 {[%clk 0:02:37]}  a5 {[%clk 0:02:34]} 13. e5 {[%clk 0:02:29]}  Nd7 {[%clk 0:02:33]} 14. c3 {[%clk 0:02:29]}  g6 {[%clk 0:02:30]} 15. Be3 {[%clk 0:02:17]}  Rb8 {[%clk 0:02:28]} 16. Ra2 {[%clk 0:02:12]}  f6 {[%clk 0:02:05]} 17. exf6 {[%clk 0:02:09]}  Bxf6 {[%clk 0:02:05]} 18. Bf2 {[%clk 0:02:05]}  Qe7 {[%clk 0:01:57]} 19. Re1 {[%clk 0:02:04]}  Rbe8 {[%clk 0:01:44]} 20. d4 {[%clk 0:01:42]}  cxd4 {[%clk 0:01:40]} 21. cxd4 {[%clk 0:01:25]}  Qb4 {[%clk 0:01:35]} 22. Qd2 {[%clk 0:01:24]}  Nb6 {[%clk 0:01:15]} 23. Nc3 {[%clk 0:01:21]}  Nc4 {[%clk 0:01:12]} 24. Qc2 {[%clk 0:01:15]}  Bg7 {[%clk 0:01:08]} 25. g3 {[%clk 0:01:13]}  Nd6 {[%clk 0:01:00]} 26. Nxd5 {[%clk 0:01:07]}  exd5 {[%clk 0:00:42]} 27. Rxe8 {[%clk 0:01:04]}  Rxe8 {[%clk 0:00:42]} 28. Qxc6 {[%clk 0:01:04]}  Qc4 {[%clk 0:00:31]} 29. Qxc4 {[%clk 0:00:53]}  dxc4 {[%clk 0:00:31]} 30. Rxa5 {[%clk 0:00:41]}  Re2 {[%clk 0:00:31]} 31. Rxa7 {[%clk 0:00:11]}  Ne4 {[%clk 0:00:31]} 32. Ng5 {[%clk 0:00:06]}  Nxf2 {[%clk 0:00:27]} 33. Kf1 {[%clk 0:00:05]}  Rxb2 {[%clk 0:00:22]} 34. Ra8+ {[%clk 0:00:05]}  Bf8 {[%clk 0:00:22]} 35. Ne6 {[%clk 0:00:06]}  Kf7 {[%clk 0:00:22]} 36. Nxf8 {[%clk 0:00:06]}  c3 {[%clk 0:00:21]} 37. Nxh7 {[%clk 0:00:06]}  Ne4 {[%clk 0:00:21]} 38. Ng5+ {[%clk 0:00:06]}  Nxg5 {[%clk 0:00:21]} 39. fxg5 {[%clk 0:00:07]}  c2 {[%clk 0:00:21]} 40. Rc8 {[%clk 0:00:08]}  Rb1+ {[%clk 0:00:22]} 41. Kg2 {[%clk 0:00:09]}  c1=Q {[%clk 0:00:22]} 42. Rxc1 {[%clk 0:00:09]}  Rxc1 {[%clk 0:00:23]} 43. Kf3 {[%clk 0:00:10]}  Ke6 {[%clk 0:00:23]} 44. Ke4 {[%clk 0:00:10]}  Re1+ {[%clk 0:00:22]} 45. Kf4 {[%clk 0:00:09]}  Kd5 {[%clk 0:00:20]} 46. h4 {[%clk 0:00:10]}  Re4+ {[%clk 0:00:20]} 47. Kf3 {[%clk 0:00:10]}  Kxd4 {[%clk 0:00:20]} 48. g4 {[%clk 0:00:11]}  Re5 {[%clk 0:00:15]} 49. Kf4 {[%clk 0:00:11]}  Re4+ {[%clk 0:00:15]} 50. Kf3 {[%clk 0:00:10]}  Ke5 {[%clk 0:00:15]} 51. h5 {[%clk 0:00:11]}  gxh5 {[%clk 0:00:15]} 52. gxh5 {[%clk 0:00:11]}  Rh4 {[%clk 0:00:16]} 53. h6 {[%clk 0:00:12]}  Kf5 {[%clk 0:00:16]} 0-1


[Site "https://www.chess.com"]